fUSD/lending_fUSD_20250119
["ID","MTS","AMOUNT","RATE_DAILY","PERIOD"]
[349604273,1737324642047,-500.0,0.00020718,2]
[349604275,1737324642057,-500.0,0.00020718,2]
[349604277,1737324642066,-500.0,0.00020718,2]
[349604279,1737324642076,-500.0,0.00020718,2]
[349604281,1737324642086,-500.0,0.00020718,2]
[349604283,1737324642095,-500.0,0.00020718,2]
[349604285,1737324642104,-500.0,0.00020718,2]
[349604287,1737324642113,-500.0,0.00020718,2]
[349604289,1737324642122,-500.0,0.00020718,2]
[349604291,1737324642131,-500.0,0.00020718,2]
[349604293,1737324642140,-500.0,0.00020718,2]
[349604295,1737324642149,-500.0,0.00020718,2]
[349604297,1737324642158,-500.0,0.00020718,2]
[349604299,1737324642170,-500.0,0.00020718,2]
[349604301,1737324642180,-500.0,0.00020718,2]
[349604304,1737324642189,-500.0,0.00020718,2]
[349604305,1737324642198,-500.0,0.00020718,2]
[349604307,1737324642207,-500.0,0.00020718,2]
[349604310,1737324642216,-500.0,0.00020718,2]
[349604312,1737324642226,-500.0,0.00020718,2]
[349604313,1737324642235,-500.0,0.00020718,2]
[349604315,1737324642244,-500.0,0.00020718,2]
[349604318,1737324642254,-500.0,0.00020718,2]
[349604320,1737324642263,-500.0,0.00020718,2]
[349604321,1737324642272,-500.0,0.00020718,2]
[349604324,1737324642282,-500.0,0.00020718,2]
[349604326,1737324642291,-500.0,0.00020718,2]
[349604327,1737324642300,-500.0,0.00020718,2]
[349604329,1737324642309,-500.0,0.00020718,2]
[349604331,1737324642319,-500.0,0.00020718,2]
[349604333,1737324642328,-500.0,0.00020718,2]
[349604335,1737324642338,-500.0,0.00020718,2]
[349604337,1737324642346,-500.0,0.00020718,2]
[349604339,1737324642355,-500.0,0.00020718,2]
[349604341,1737324642365,-500.0,0.00020718,2]
[349604343,1737324642374,-500.0,0.00020718,2]
[349604345,1737324642383,-182.44588492,0.00020718,2]
[349604347,1737324642392,-500.0,0.00020718,2]
[349604349,1737324642401,-500.0,0.00020718,2]
[349604351,1737324642412,-500.0,0.00020718,2]
[349604354,1737324642421,-228.01130974,0.00020718,2]
[349604355,1737324642431,-500.0,0.00020718,2]
[349604357,1737324642440,-500.0,0.00020718,2]
[349604359,1737324642449,-500.0,0.00020718,2]
[349604361,1737324642458,-500.0,0.00020718,2]
[349604363,1737324642466,-500.0,0.00020718,2]
[349604365,1737324642475,-500.0,0.00020718,2]
[349604367,1737324642485,-500.0,0.00020718,2]
[349604369,1737324642494,-500.0,0.00020718,2]
[349604371,1737324642503,-500.0,0.00020719,2]
[349604373,1737324642512,-504.67565356,0.00020719,2]
[349604375,1737324642521,-501.95077463,0.00020719,2]
[349604377,1737324642530,-202.2583796,0.00020719,2]
[349604379,1737324642539,-505.60453528,0.00020719,2]
[349604381,1737324642548,-504.9591522,0.00020719,2]
[349604383,1737324642558,-334.01453175,0.00020719,2]
[349604385,1737324642567,-502.79364301,0.00020719,2]
[349604387,1737324642575,-500.0,0.00020719,2]
[349604389,1737324642584,-633.78268569,0.00020719,2]
[349604391,1737324642594,-351.211748,0.00020719,2]
[349604393,1737324642603,-502.45902709,0.00020759,2]
[349604395,1737324642612,-500.0,0.00020759,2]
[349604397,1737324642621,-500.0,0.00020759,2]
[349604399,1737324642631,-500.0,0.00020759,2]
[349604401,1737324642639,-500.0,0.00020759,2]
[349604403,1737324642649,-500.58910128,0.00020759,2]
[349604404,1737324642657,-500.0,0.00020759,2]
[349604406,1737324642671,-500.0,0.00020759,2]
[349604408,1737324642680,-500.0,0.00020759,2]
[349604410,1737324642689,-500.0,0.00020759,2]
[349604412,1737324642698,-500.0,0.00020759,2]
[349604414,1737324642707,-500.0,0.00020759,2]
[349604416,1737324642719,-580.58,0.00020759,2]
[349604418,1737324642729,-271.6110536,0.00020759,2]
[349604420,1737324642738,-500.0,0.00020759,2]
[349604422,1737324642749,-500.0,0.00020759,2]
[349604424,1737324642759,-502.01884778,0.00020759,2]
[349604426,1737324642768,-500.0,0.00020759,2]
[349604428,1737324642777,-500.0,0.00020759,2]
[349604430,1737324642787,-343.16131165,0.00020759,2]
[349604433,1737324642796,-500.0,0.00020759,2]
[349604435,1737324642806,-500.0,0.00020759,2]
[349604437,1737324642815,-500.0,0.00020759,2]
[349604439,1737324642824,-500.0,0.00020759,2]
[349604441,1737324642834,-500.0,0.00020759,2]
[349604443,1737324642844,-500.46465182,0.00020759,2]
[349604445,1737324642853,-535.62,0.00020759,2]
[349604447,1737324642862,-500.0,0.00020759,2]
[349604449,1737324642871,-500.0,0.00020759,2]
[349604451,1737324642880,-270.6864256,0.00020759,2]
[349604453,1737324642890,-500.0,0.00020759,2]
[349604455,1737324642899,-500.0,0.00020759,2]
[349604457,1737324642908,-194.9403564,0.00020759,2]
[349604459,1737324642920,-500.0,0.00020759,2]
[349604461,1737324642930,-500.0,0.00020759,2]
[349604463,1737324642939,-350.14735123,0.00020759,2]
[349604466,1737324642948,-500.0,0.00020759,2]
[349604469,1737324642958,-500.0,0.00020759,2]
[349604471,1737324642968,-500.0,0.00020759,2]
[349604473,1737324642977,-500.0,0.00020759,2]
[349604475,1737324642987,-500.0,0.00020759,2]
[349604477,1737324642997,-500.0,0.00020759,2]
[349604480,1737324643006,-500.0,0.00020759,2]
[349604482,1737324643015,-500.0,0.00020759,2]
[349604484,1737324643024,-500.0,0.00020759,2]
[349604486,1737324643034,-500.0,0.00020759,2]
[349604488,1737324643043,-607.89674839,0.00020759,2]
[349604490,1737324643051,-500.0,0.00020759,2]
[349604507,1737324643061,-500.0,0.00020759,2]
[349604511,1737324643194,-500.0,0.00020759,2]
[349604513,1737324643203,-500.0,0.00020759,2]
[349604516,1737324643212,-500.0,0.00020759,2]
[349604518,1737324643221,-500.0,0.00020759,2]
[349604520,1737324643230,-543.89326692,0.00020759,2]
[349604522,1737324643238,-500.0,0.00020759,2]
[349604524,1737324643248,-500.0,0.00020759,2]
[349604526,1737324643257,-500.0,0.00020759,2]
[349604528,1737324643266,-500.0,0.00020759,2]
[349604529,1737324643275,-500.0,0.00020759,2]
[349604531,1737324643284,-527.90947784,0.00020759,2]
[349604533,1737324643293,-627.01942637,0.00020759,2]
[349604535,1737324643302,-500.0,0.00020759,2]
[349604537,1737324643312,-500.0,0.00020759,2]
[349604539,1737324643321,-500.62233214,0.00020759,2]
[349604541,1737324643330,-500.0,0.00020759,2]
[349604543,1737324643339,-500.0,0.00020759,2]
[349604545,1737324643349,-500.0,0.00020759,2]
[349604547,1737324643358,-500.0,0.00020759,2]
[349604549,1737324643367,-500.0,0.00020759,2]
[349604551,1737324643375,-500.0,0.00020759,2]
[349604553,1737324643384,-500.0,0.00020759,2]
[349604555,1737324643393,-500.0,0.00020759,2]
[349604557,1737324643402,-500.57855283,0.00020759,2]
[349604559,1737324643414,-500.0,0.00020759,2]
[349604561,1737324643423,-500.0,0.00020759,2]
[349604563,1737324643432,-500.0,0.00020759,2]
[349604565,1737324643441,-500.0,0.00020759,2]
[349604567,1737324643450,-500.0,0.00020759,2]
[349604569,1737324643460,-500.0,0.00020759,2]
[349604571,1737324643469,-644.97253192,0.00020759,2]
[349604573,1737324643479,-500.0,0.00020759,2]
[349604575,1737324643488,-500.0,0.00020759,2]
[349604577,1737324643498,-500.0,0.00020759,2]
[349604579,1737324643507,-500.0,0.00020759,2]
[349604581,1737324643517,-500.0,0.00020759,2]
[349604582,1737324643526,-500.0,0.00020759,2]
[349604584,1737324643535,-500.0,0.00020759,2]
[349604586,1737324643544,-500.0,0.00020759,2]
[349604588,1737324643553,-500.0,0.00020759,2]
[349604590,1737324643563,-500.0,0.00020759,2]
[349604592,1737324643572,-500.0,0.00020759,2]
[349604594,1737324643581,-500.0,0.00020759,2]
[349604596,1737324643591,-518.59540817,0.00020759,2]
[349604598,1737324643600,-500.0,0.00020759,2]
[349604600,1737324643609,-500.0,0.00020759,2]
[349604602,1737324643618,-500.0,0.00020759,2]
[349604604,1737324643628,-500.0,0.00020759,2]
[349604606,1737324643637,-500.0,0.00020759,2]
[349604608,1737324643646,-500.0,0.00020759,2]
[349604610,1737324643655,-500.0,0.00020759,2]
[349604612,1737324643666,-500.0,0.00020759,2]
[349604614,1737324643676,-500.0,0.00020759,2]
[349604616,1737324643686,-576.19436144,0.00020759,2]
[349604618,1737324643695,-500.0,0.00020759,2]
[349604620,1737324643704,-500.0,0.00020759,2]
[349604622,1737324643713,-500.0,0.00020759,2]
[349604624,1737324643723,-500.0,0.00020759,2]
[349604626,1737324643732,-500.0,0.00020759,2]
[349604628,1737324643742,-500.0,0.00020759,2]
[349604630,1737324643751,-500.0,0.00020759,2]
[349604631,1737324643761,-500.0,0.00020759,2]
[349604633,1737324643771,-500.0,0.00020759,2]
[349604637,1737324643780,-500.0,0.00020759,2]
[349604641,1737324643790,-500.0,0.00020759,2]
[349604643,1737324643799,-500.0,0.00020759,2]
[349604645,1737324643810,-500.0,0.00020759,2]
[349604648,1737324643819,-500.0,0.00020759,2]
[349604650,1737324643829,-500.0,0.00020759,2]
[349604652,1737324643840,-500.0,0.00020759,2]
[349604654,1737324643849,-500.0,0.00020759,2]
[349604656,1737324643858,-500.0,0.00020759,2]
[349604658,1737324643868,-500.0,0.00020759,2]
[349604660,1737324643878,-500.0,0.00020759,2]
[349604662,1737324643887,-504.02598831,0.00020759,2]
[349604664,1737324643898,-503.40159641,0.00020759,2]
[349604666,1737324643908,-500.0,0.00020759,2]
[349604668,1737324643921,-636.63069971,0.00020759,2]
[349604670,1737324643931,-502.25519525,0.00020759,2]
[349604672,1737324643941,-500.0,0.00020759,2]
[349604674,1737324643951,-504.00312126,0.00020759,2]
[349604676,1737324643961,-500.0,0.00020759,2]
[349604678,1737324643970,-500.0,0.00020759,2]
[349604680,1737324643980,-500.0,0.00020759,2]
[349604682,1737324643989,-500.0,0.00020759,2]
[349604683,1737324644000,-503.25574537,0.00020759,2]
[349604684,1737324644009,-502.09112615,0.00020759,2]
[349604685,1737324644018,-501.36894374,0.00020759,2]
[349604686,1737324644027,-500.0,0.00020759,2]
[349604687,1737324644036,-505.88303691,0.00020759,2]
[349604688,1737324644045,-500.0,0.00020759,2]
[349604689,1737324644054,-500.0,0.00020759,2]
[349604690,1737324644063,-544.252216,0.00020759,2]
[349604691,1737324644073,-500.0,0.00020759,2]
[349604692,1737324644082,-506.77954563,0.00020759,2]
[349604693,1737324644091,-500.0,0.00020759,2]
[349604694,1737324644100,-500.0,0.00020759,2]
[349604695,1737324644109,-500.0,0.00020759,2]
[349604697,1737324644118,-500.0,0.00020759,2]
[349604699,1737324644128,-500.0,0.00020759,2]
[349604701,1737324644138,-500.0,0.00020759,2]
[349604702,1737324644147,-500.0,0.00020759,2]
[349604704,1737324644157,-500.0,0.00020759,2]
[349604706,1737324644169,-500.0,0.00020759,2]
[349604708,1737324644178,-500.0,0.00020759,2]
[349604710,1737324644188,-500.0,0.00020759,2]
[349604712,1737324644197,-500.0,0.00020759,2]
[349604714,1737324644208,-500.0,0.00020759,2]
[349604716,1737324644217,-500.0,0.00020759,2]
[349604718,1737324644227,-501.45246861,0.00020759,2]
[349604720,1737324644236,-500.0,0.00020759,2]
[349604722,1737324644246,-500.0,0.00020759,2]
[349604724,1737324644255,-508.17684468,0.00020759,2]
[349604726,1737324644265,-500.0,0.00020759,2]
[349604728,1737324644275,-500.0,0.00020759,2]
[349604730,1737324644284,-504.19935443,0.00020759,2]
[349604732,1737324644293,-500.0,0.00020759,2]
[349604734,1737324644303,-500.0,0.00020759,2]
[349604736,1737324644312,-501.0252248,0.00020759,2]
[349604738,1737324644322,-156.08104188,0.00020759,2]
[349604740,1737324644331,-500.0,0.00020759,2]
[349604742,1737324644341,-500.0,0.00020759,2]
[349604744,1737324644350,-500.38418972,0.00020759,2]
[349604746,1737324644360,-500.0,0.00020759,2]
[349604748,1737324644370,-500.0,0.00020759,2]
[349604750,1737324644380,-401.08263451,0.00020759,2]
[349604752,1737324644389,-500.0,0.00020759,2]
[349604754,1737324644399,-500.0,0.00020759,2]
[349604756,1737324644409,-502.40475636,0.00020759,2]
[349604758,1737324644420,-501.84265085,0.00020759,2]
[349604760,1737324644430,-500.0,0.00020759,2]
[349604762,1737324644439,-503.66498929,0.00020759,2]
[349604764,1737324644448,-500.0,0.00020759,2]
[349604765,1737324644457,-504.29476762,0.00020759,2]
[349604767,1737324644467,-500.0,0.00020759,2]
[349604769,1737324644476,-500.0,0.00020759,2]
[349604771,1737324644485,-500.0,0.00020759,2]
[349604773,1737324644494,-500.86530251,0.00020759,2]
[349604775,1737324644504,-500.0,0.00020759,2]
[349604777,1737324644514,-502.47660502,0.00020759,2]
[349604779,1737324644523,-500.0,0.00020759,2]
[349604781,1737324644533,-500.0,0.00020759,2]
[349604783,1737324644543,-498.95403899,0.00020759,2]
[349604785,1737324644552,-504.77737734,0.00020759,2]
[349604787,1737324644562,-500.0,0.00020759,2]
[349604789,1737324644572,-616.56718034,0.00020759,2]
[349604791,1737324644581,-500.0,0.00020759,2]
[349604793,1737324644590,-500.0,0.00020759,2]
[349604795,1737324644599,-500.0,0.00020759,2]
[349604797,1737324644609,-500.0,0.00020759,2]
[349604799,1737324644618,-503.14143273,0.00020759,2]
[349604801,1737324644627,-501.78552032,0.00020759,2]
[349604803,1737324644637,-500.0,0.00020759,2]
[349604805,1737324644646,-500.0,0.00020759,2]
[349604807,1737324644654,-500.0,0.00020759,2]
[349604809,1737324644665,-627.08728379,0.00020759,2]
[349604811,1737324644674,-500.0,0.00020759,2]
[349604813,1737324644683,-500.0,0.00020759,2]
[349604815,1737324644692,-528.63314122,0.00020759,2]
[349604817,1737324644701,-500.0,0.00020759,2]
[349604819,1737324644711,-500.0,0.00020759,2]
[349604821,1737324644721,-500.0,0.00020759,2]
[349604823,1737324644730,-500.0,0.00020759,2]
[349604825,1737324644739,-449.09230435,0.00020759,2]
[349604827,1737324644754,-500.0,0.00020759,2]
[349604829,1737324644763,-500.0,0.00020759,2]
[349604831,1737324644773,-500.0,0.00020759,2]
[349604833,1737324644782,-500.0,0.00020759,2]
[349604835,1737324644793,-314.21108855,0.00020759,2]
[349604837,1737324644801,-544.68,0.00020759,2]
[349604839,1737324644811,-500.0,0.00020759,2]
[349604841,1737324644819,-500.0,0.00020759,2]
[349604843,1737324644829,-500.0,0.00020759,2]
[349604845,1737324644838,-536.19833691,0.00020759,2]
[349604847,1737324644847,-500.0,0.00020759,2]
[349604849,1737324644856,-500.0,0.00020759,2]
[349604851,1737324644865,-500.0,0.00020759,2]
[349604853,1737324644874,-500.0,0.00020759,2]
[349604855,1737324644884,-500.0,0.00020759,2]
[349604857,1737324644893,-500.0,0.00020759,2]
[349604859,1737324644903,-545.87,0.00020759,2]
[349604861,1737324644912,-500.0,0.00020759,2]
[349604862,1737324644925,-500.0,0.00020759,2]
[349604864,1737324644934,-500.0,0.00020759,2]
[349604867,1737324644943,-500.0,0.00020759,2]
[349604869,1737324644952,-500.0,0.00020759,2]
[349604870,1737324644961,-500.0,0.00020759,2]
[349604872,1737324644971,-500.0,0.00020759,2]
[349604874,1737324644980,-500.0,0.00020759,2]
[349604876,1737324644989,-500.0,0.00020759,2]
[349604878,1737324644999,-500.0,0.00020759,2]
[349604880,1737324645008,-500.0,0.00020759,2]
[349604882,1737324645017,-1154.9,0.00020759,2]
[349604884,1737324645026,-500.0,0.00020759,2]
[349604886,1737324645035,-500.0,0.00020759,2]
[349604888,1737324645044,-197.94115361,0.00020759,2]
[349604890,1737324645053,-500.0,0.00020759,2]
[349604892,1737324645062,-500.0,0.00020759,2]
[349604894,1737324645072,-500.0,0.00020759,2]
[349604896,1737324645081,-500.0,0.00020759,2]
[349604898,1737324645090,-500.0,0.00020759,2]
[349604900,1737324645100,-500.0,0.00020759,2]
[349604901,1737324645109,-500.0,0.00020759,2]
[349604902,1737324645119,-500.0,0.00020759,2]
[349604903,1737324645128,-500.0,0.00020759,2]
[349604904,1737324645138,-771.79,0.00020759,2]
[349604905,1737324645148,-500.0,0.00020759,2]
[349604906,1737324645158,-500.0,0.00020759,2]
[349604907,1737324645173,-500.0,0.00020759,2]
[349604908,1737324645183,-500.0,0.00020759,2]
[349604909,1737324645193,-637.82,0.00020759,2]
[349604910,1737324645203,-519.1126247,0.00020759,2]
[349604911,1737324645213,-500.0,0.00020759,2]
[349604913,1737324645222,-500.0,0.00020759,2]
[349604915,1737324645231,-668.04,0.00020759,2]
[349604917,1737324645241,-500.0,0.00020759,2]
[349604918,1737324645250,-500.0,0.00020759,2]
[349604920,1737324645259,-500.0,0.00020759,2]
[349604922,1737324645269,-500.0,0.00020759,2]
[349604924,1737324645278,-500.0,0.00020759,2]
[349604926,1737324645288,-500.0,0.00020759,2]
[349604928,1737324645297,-595.58,0.00020759,2]
[349604930,1737324645307,-500.0,0.00020759,2]
[349604932,1737324645316,-500.0,0.00020759,2]
[349604934,1737324645326,-500.0,0.00020759,2]
[349604936,1737324645335,-500.0,0.00020759,2]
[349604938,1737324645345,-500.0,0.00020759,2]
[349604940,1737324645355,-500.0,0.00020759,2]
[349604942,1737324645364,-500.0,0.00020759,2]
[349604943,1737324645374,-500.0,0.00020759,2]
[349604945,1737324645384,-500.0,0.00020759,2]
[349604947,1737324645394,-594.06,0.00020759,2]
[349604949,1737324645403,-500.0,0.00020759,2]
[349604951,1737324645415,-637.24090478,0.00020759,2]
[349604953,1737324645426,-1439.73,0.00020759,2]
[349604955,1737324645437,-500.0,0.00020759,2]
[349604957,1737324645446,-500.0,0.00020759,2]
[349604959,1737324645456,-500.0,0.00020759,2]
[349604961,1737324645466,-500.0,0.00020759,2]
[349604962,1737324645475,-500.0,0.00020759,2]
[349604964,1737324645485,-500.0,0.00020759,2]
[349604965,1737324645495,-520.43,0.00020759,2]
[349604966,1737324645505,-500.0,0.00020759,2]
[349604967,1737324645514,-500.0,0.00020759,2]
[349604968,1737324645524,-500.0,0.00020759,2]
[349604969,1737324645533,-500.0,0.00020759,2]
[349604970,1737324645542,-500.0,0.00020759,2]
[349604971,1737324645552,-500.0,0.00020759,2]
[349604972,1737324645561,-644.72,0.00020759,2]
[349604973,1737324645570,-659.17,0.00020759,2]
[349604974,1737324645579,-500.0,0.00020759,2]
[349604975,1737324645589,-500.0,0.00020759,2]
[349604976,1737324645598,-500.0,0.00020759,2]
[349604977,1737324645607,-500.0,0.00020759,2]
[349604978,1737324645617,-500.0,0.00020759,2]
[349604979,1737324645626,-391.77066461,0.00020759,2]
[349604981,1737324645635,-507.66154877,0.00020759,2]
[349604983,1737324645645,-500.0,0.00020759,2]
[349604985,1737324645654,-500.0,0.00020759,2]
[349604987,1737324645666,-500.0,0.00020759,2]
[349604988,1737324645675,-500.0,0.00020759,2]
[349604989,1737324645684,-500.0,0.00020759,2]
[349604990,1737324645693,-500.0,0.00020759,2]
[349604992,1737324645702,-500.0,0.00020759,2]
[349604993,1737324645711,-500.0,0.00020759,2]
[349604995,1737324645721,-1000.0,0.00020759,2]
[349604996,1737324645730,-500.0,0.00020759,2]
[349604998,1737324645739,-500.0,0.00020759,2]
[349605000,1737324645749,-500.0,0.00020759,2]
[349605002,1737324645758,-212.92632302,0.00020759,2]
[349605004,1737324645770,-500.0,0.00020759,2]
[349605006,1737324645779,-500.0,0.00020759,2]
[349605008,1737324645788,-500.0,0.00020759,2]
[349605010,1737324645797,-10267.88335884,0.00020769,2]
[349605013,1737324645807,-150.96484336,0.00020773,2]
[349605016,1737324645816,-150.96367994,0.00020773,2]
[349605019,1737324645826,-150.9629668,0.00020773,2]
[349605022,1737324645835,-150.96367876,0.00020773,2]
[349605024,1737324645845,-151.96335287,0.00020773,2]
[349605026,1737324645856,-500.0,0.00020773,2]
[349605028,1737324645865,-500.0,0.00020773,2]
[349605030,1737324645874,-160.46301428,0.00020773,2]
[349605032,1737324645884,-153.3919634,0.00020773,2]
[349605034,1737324645893,-160.88631315,0.00020773,2]
[349605036,1737324645902,-500.0,0.00020773,2]
[349605038,1737324645910,-152.2180825,0.00020773,2]
[349605040,1737324645923,-169.85724235,0.00020773,2]
[349605042,1737324645933,-639.74044,0.00020785,2]
[349605044,1737324645942,-408.24028286,0.00020789,2]
[349605046,1737324645951,-1983.16627169,0.0002079,2]
[349605048,1737324645960,-531.00907144,0.00020791,2]
[349605050,1737324645969,-4885.82176353,0.00020791,2]
[349605052,1737324645978,-810.11493788,0.00020801,2]
[349605054,1737324645987,-408.24028286,0.00020803,2]
[349605056,1737324645996,-639.74044,0.00020812,2]
[349605058,1737324646006,-563.9,0.00020819,2]
[349605060,1737324646014,-500.0,0.0002082,2]
[349605062,1737324646024,-500.0,0.0002082,2]
[349605063,1737324646033,-500.0,0.0002082,2]
[349605065,1737324646042,-500.0,0.0002082,2]
[349605067,1737324646051,-500.0,0.0002082,2]
[349605069,1737324646060,-500.0,0.0002082,2]
[349605071,1737324646069,-500.0,0.0002082,2]
[349605073,1737324646078,-500.0,0.0002082,2]
[349605075,1737324646087,-503.00310706,0.0002082,2]
[349605077,1737324646097,-207.13848932,0.0002082,2]
[349605079,1737324646106,-500.0,0.0002082,2]
[349605081,1737324646115,-500.0,0.0002082,2]
[349605083,1737324646124,-254.29670024,0.0002082,2]
[349605085,1737324646133,-500.0,0.0002082,2]
[349605087,1737324646142,-309.12567655,0.0002082,2]
[349605089,1737324646151,-202.65,0.0002082,2]
[349605091,1737324646161,-500.0,0.0002082,2]
[349605104,1737324646292,-500.0,0.0002082,2]
[349605105,1737324646301,-500.0,0.0002082,2]
[349605106,1737324646310,-500.0,0.0002082,2]
[349605107,1737324646321,-500.0,0.0002082,2]
[349605108,1737324646330,-500.0,0.0002082,2]
[349605109,1737324646339,-185.991536,0.0002082,2]
[349605110,1737324646348,-500.0,0.0002082,2]
[349605111,1737324646357,-500.0,0.0002082,2]
[349605112,1737324646366,-500.0,0.0002082,2]
[349605114,1737324646375,-500.0,0.0002082,2]
[349605116,1737324646385,-500.0,0.0002082,2]
[349605118,1737324646394,-500.0,0.0002082,2]
[349605120,1737324646405,-521.72017499,0.0002082,2]
[349605122,1737324646414,-500.0,0.0002082,2]
[349605124,1737324646427,-500.0,0.0002082,2]
[349605126,1737324646437,-4885.82176353,0.00020837,2]
[349605128,1737324646447,-1983.16627169,0.00020838,2]
[349605130,1737324646456,-408.24028286,0.00020838,2]
[349605132,1737324646466,-1983.16627169,0.00020839,2]
[349605134,1737324646475,-4885.82176353,0.00020846,2]
[349605136,1737324646484,-531.00907144,0.00020846,2]
[349605138,1737324646493,-531.00907144,0.00020849,2]
[349605140,1737324646503,-1983.16627169,0.00020878,2]
[349605142,1737324646512,-531.00907144,0.00020884,2]
[349605144,1737324646521,-639.74044,0.00020886,2]
[349605146,1737324646530,-810.11493788,0.00020893,2]
[349605148,1737324646540,-200.0,0.00020902,2]
[349605150,1737324646549,-408.24028286,0.00020902,2]
[349605152,1737324646558,-531.00907144,0.00020906,2]
[349605154,1737324646568,-4885.82176353,0.00020909,2]
[349605156,1737324646577,-1983.16627169,0.00020914,2]
[349605158,1737324646587,-639.74044,0.00020917,2]
[349605160,1737324646596,-10267.88335884,0.00020931,2]
[349605162,1737324646605,-408.24028286,0.00020931,2]
[349605163,1737324646614,-4885.82176353,0.00020932,2]
[349605166,1737324646623,-4394.65792316,0.00020935,2]
[349605167,1737324646632,-166.70361318,0.00020944,2]
[349605169,1737324646642,-639.74044,0.00020948,2]
[349605171,1737324646651,-261.04,0.00020954,2]
[349605173,1737324646660,-810.11493788,0.00020984,2]
[349605175,1737324646673,-543.03,0.0002099,2]
[349605177,1737324646683,-500.0,0.0002099,2]
[349605179,1737324646693,-588.15,0.0002099,2]
[349605181,1737324646702,-279.34,0.0002099,2]
[349605183,1737324646712,-259.5,0.0002099,2]
[349605185,1737324646721,-500.0,0.0002099,2]
[349605187,1737324646731,-500.0,0.0002099,2]
[349605189,1737324646740,-575.34,0.0002099,2]
[349605191,1737324646756,-500.0,0.0002099,2]
[349605193,1737324646766,-500.0,0.0002099,2]
[349605195,1737324646775,-1019.83,0.0002099,2]
[349605197,1737324646785,-500.0,0.0002099,2]
[349605199,1737324646795,-680.48,0.0002099,2]
[349605201,1737324646804,-500.0,0.0002099,2]
[349605203,1737324646813,-538.06,0.0002099,2]
[349605205,1737324646823,-500.0,0.0002099,2]
[349605207,1737324646832,-500.0,0.0002099,2]
[349605209,1737324646843,-769.4,0.0002099,2]
[349605211,1737324646854,-500.0,0.0002099,2]
[349605213,1737324646863,-500.0,0.0002099,2]
[349605215,1737324646872,-500.0,0.0002099,2]
[349605217,1737324646882,-500.0,0.0002099,2]
[349605219,1737324646892,-500.0,0.0002099,2]
[349605221,1737324646901,-500.0,0.0002099,2]
[349605223,1737324646910,-450.4676237,0.0002099,2]
[349605225,1737324646924,-500.0,0.0002099,2]
[349605227,1737324646933,-500.0,0.0002099,2]
[349605229,1737324646942,-500.0,0.0002099,2]
[349605231,1737324646951,-500.0,0.0002099,2]
[349605233,1737324646962,-500.0,0.0002099,2]
[349605235,1737324646971,-558.88,0.0002099,2]
[349605237,1737324646980,-593.94,0.0002099,2]
[349605239,1737324646989,-500.0,0.0002099,2]
[349605241,1737324646999,-500.0,0.0002099,2]
[349605243,1737324647008,-500.0,0.00020991,2]
[349605245,1737324647018,-500.0,0.00020991,2]
[349605247,1737324647027,-500.0,0.00020991,2]
[349605249,1737324647037,-500.0,0.00020991,2]